Cogmind - Beta 15 @@@ ROGUE MODE // 2025.07.31 @ 05:23:12 Player: COGMINDER69 Result: Escaped! Performance ------------- Evolutions (9) 4500 Regions Visited (15) 3000 Robots Destroyed (127) 635 Value Destroyed (3458) 3458 Prototype IDs (42) 840 Alien Tech Used (0) 0 Bonus (3917) 3917 TOTAL SCORE: 16350 Bonus ------- High Alert Combat Kills 117 Entered DSFs 500 Aligned with FarCom 300 Win 3000 Cogmind --------- Core Integrity 1600/1600 Matter 123/300 Energy 24/200 System Corruption 0% Temperature Hot (232) Movement Flying (5) Location To Epsilon Eridani Parts ------- > --- POWER (2) -------- Micro Fission Core Micro Fission Core > --- PROPULSION (8) --- Cooled VTOL Module Cooled VTOL Module Cooled VTOL Module Cooled VTOL Module Cooled VTOL Module Cooled Cesium-ion Thruster Nuclear Pulse Array > --- UTILITY (13) ----- Power Amplifier Advanced Cryofiber Web Structural Scanner ECM Suite Reaction Control System Experimental Utility Shielding Improved Medium Armor Plating Hacking Suite Hacking Suite Improved Hacking Suite Experimental Hacking Suite System Shield System Shield > --- WEAPON (2) ------- Power Sword > --- INVENTORY (5) ---- Quantum Reactor Diametric Drive Improved Light Armor Plating Katana Peak State ------------ > --- POWER ------------ Light Fission Core Micro Fission Core > --- PROPULSION ------- Cooled VTOL Module Cooled VTOL Module Cooled VTOL Module Cooled VTOL Module Cooled VTOL Module Cooled VTOL Module Cooled Cesium-ion Thruster Diametric Drive > --- UTILITY ---------- Power Amplifier Advanced Cryofiber Web Advanced Gravity Neutralizer Structural Scanner Propulsion Shielding Experimental Utility Shielding Improved Medium Armor Plating Hacking Suite Hacking Suite Improved Hacking Suite Experimental Hacking Suite System Shield System Shield > --- WEAPON ----------- Long-range Missile Launcher Power Sword > --- INVENTORY -------- Micro Fission Core Advanced Cryofiber Web ECM Suite Improved Light Armor Plating Katana [Rating: 124] Favorites ----------- Power Ion Engine Engine Ion Engine Power Core Micro Fission Core Propulsion Carbon-fiber Leg Treads Light Treads Leg Carbon-fiber Leg Flight Unit Cooled VTOL Module Utility Large Storage Unit Device Heat Sink Storage Large Storage Unit Processor Improved Melee Analysis Suite Hackware Hacking Suite Protection Improved Light Armor Plating Weapon Improved EM Pulse Cannon Energy Cannon Improved EM Pulse Cannon Ballistic Gun Assault Rifle Ballistic Cannon Light Cannon Launcher Long-range Missile Launcher Special Weapon Plasma Flamer Slashing Weapon Katana Build | -11 -10 -10 -9 -9 -9 -8 -8 -7 -6 -5 -4 -3 -2 -2 -1 ------- Run | Yrd Mat Min Mat Min Exi Min Mat Fac Fac Fac Fac Res Res DSF Acc Slots Evolved 18 | . . . 2 . . . 2 2 2 2 2 2 2 . 2 Power 1 | . . . . . . . . . . . 1 . . . . Propulsion 6 | . . . 2 . . . . . 1 . 1 . 1 . 1 Utility 11 | . . . . . . . 2 2 1 2 . 2 1 . 1 Weapon . | . . . . . . . . . . . . . . . . Parts Attached 116 | 8 17 2 25 2 . . 16 4 19 4 5 2 . . 12 Power 11 | 1 1 . 2 . . . 3 1 1 . 2 . . . . Engine 5 | 1 1 . 2 . . . 1 . . . . . . . . Core 6 | . . . . . . . 2 1 1 . 2 . . . . Reactor . | . . . . . . . . . . . . . . . . Propulsion 47 | 4 8 2 14 . . . 7 1 6 1 1 . . . 3 Treads 2 | 2 . . . . . . . . . . . . . . . Leg 28 | 2 8 2 14 . . . 2 . . . . . . . . Wheel . | . . . . . . . . . . . . . . . . Hover . | . . . . . . . . . . . . . . . . Flight 17 | . . . . . . . 5 1 6 1 1 . . . 3 Utility 38 | 1 6 . 2 . . . 4 2 10 2 . 2 . . 9 Device 12 | . 2 . 2 . . . . 1 2 1 . . . . 4 Storage 4 | 1 2 . . . . . 1 . . . . . . . . Processor 1 | . . . . . . . . . . . . . . . 1 Hackware 12 | . . . . . . . . 1 7 . . 2 . . 2 Protection 9 | . 2 . . . . . 3 . 1 1 . . . . 2 Artifact . | . . . . . . . . . . . . . . . . Weapon 20 | 2 2 . 7 2 . . 2 . 2 1 2 . . . . Energy Gun . | . . . . . . . . . . . . . . . . Energy Cannon 3 | . . . 1 2 . . . . . . . . . . . Ballistic Gun 8 | 2 1 . 5 . . . . . . . . . . . . Ballistic Cannon 1 | . 1 . . . . . . . . . . . . . . Launcher 5 | . . . . . . . 1 . 2 1 1 . . . . Special Weapon 1 | . . . 1 . . . . . . . . . . . . Impact Weapon . | . . . . . . . . . . . . . . . . Slashing Weapon 2 | . . . . . . . 1 . . . 1 . . . . Piercing Weapon . | . . . . . . . . . . . . . . . . Special Melee Weapon . | . . . . . . . . . . . . . . . . Unidentified Prototypes 13 | . . . 3 . . . 2 . 2 1 1 . . . 4 Parts Lost 24 | . . . 5 . . . 12 . 1 . . . . 3 3 Power 3 | . . . . . . . 2 . . . . . . . 1 Propulsion 8 | . . . 2 . . . 5 . . . . . . 1 . Utility 5 | . . . . . . . 1 . 1 . . . . 2 1 Weapon 8 | . . . 3 . . . 4 . . . . . . . 1 Highest Loss Streak 12 | . . . 1 . . . 12 . 1 . . . . 3 3 To Critical Strikes . | . . . . . . . . . . . . . . . . Average Backups 11 | 2 10 14 14 14 14 13 15 14 6 4 4 3 3 3 3 Power . | . 1 . 1 . 1 1 1 . . . . 1 1 1 . Propulsion 4 | . 5 7 6 6 5 4 3 1 . 1 1 1 . . . Utility 4 | . 2 4 4 4 4 5 7 10 4 2 2 . 1 1 1 Weapon 2 | . 1 3 2 3 3 3 2 1 . . 1 1 1 1 1 Tool/Special . | . . . . . . . . . . . . . . . . Unused Backups 38 | . 1 2 7 2 2 . 9 5 6 1 . . . . 3 Power 4 | . . 1 1 . . . . . 1 . . . . . 1 Propulsion 11 | . 1 . 6 . 2 . 2 . . . . . . . . Utility 16 | . . . . . . . 4 4 5 1 . . . . 2 Weapon 7 | . . 1 . 2 . . 3 1 . . . . . . . Tool/Special . | . . . . . . . . . . . . . . . . Average Slot Usage (%) 95 | . 98 100 99 100 100 100 76 74 95 99 99 99 95 95 92 Engine 8 | . 14 14 11 11 11 11 6 . . . . . . . . Core 1 | . . . . . . . 1 7 6 5 9 9 8 8 7 Leg 26 | . 27 28 43 44 44 44 27 . . . . . . . . Flight 8 | . . . . . . . 8 30 33 29 31 28 30 30 27 Device 7 | . 5 . 10 11 11 11 . 7 8 16 15 14 13 13 16 Storage 9 | . 14 14 11 11 11 11 9 7 1 . . . . . . Hackware 5 | . . . . . . . . 6 26 23 21 27 26 26 22 Protection 5 | . 7 14 . . . . 8 6 5 11 10 9 8 8 10 Energy Cannon 3 | . . . 1 16 22 22 11 . . . . . . . . Ballistic Gun 7 | . 18 14 10 2 . . . . . . . . . . . Ballistic Cannon 3 | . 9 14 . . . . . . . . . . . . . Special Weapon 2 | . . . 9 2 . . . . . . . . . . . Slashing Weapon 1 | . . . . . . . 2 6 6 5 5 4 4 4 4 Peak Build Rating 124 | 6 9 9 27 28 30 30 61 61 67 66 81 85 90 90 124 Average Rating 33 | 4 7 8 20 27 28 30 56 60 52 64 78 84 90 88 105 On Entrance 44 | . 6 8 9 27 28 30 30 54 60 59 66 79 85 90 79 Naked Turns . | . . . . . . . . . . . . . . . . Heaviest Build 43 | 13 33 33 35 43 43 43 35 18 23 25 31 29 29 29 37 Greatest Support 60 | 40 20 20 60 60 60 60 60 18 35 26 31 41 30 41 54 Greatest Overweight (x) 1 | . 1 1 1 . . . . . . . . . . . . Average Overweight (x) . | . . 1 . . . . . . . . . . . . . Largest Inventory Capacity 40 | 8 15 15 15 15 15 15 40 40 40 5 5 5 5 5 5 Average Capacity 16 | 7 11 15 15 15 15 15 39 40 11 5 5 5 5 5 5 Most Carried 20 | 6 15 15 15 15 15 15 20 18 15 5 5 4 3 3 5 Average Carried 11 | 2 10 14 14 14 14 15 15 14 5 4 4 3 3 3 3 Final Capacity 40 | 8 15 15 15 15 15 15 40 40 5 5 5 5 5 5 5 Final Carried 15 | 4 15 15 14 15 15 15 14 15 5 5 5 4 3 3 4 Class Distribution -------------------- 51% | Mutant 14% | Scavenger-Mutant 12% | Hacker-Sprinter 8% | Hauler-Sprinter 7% | Hauler-Mutant 5% | Wizard-Sprinter Dominant Class ---------------- Mutant | -10/Materials Mutant | -10/Mines Scavenger-Mutant | -9/Materials Mutant | -9/Mines Mutant | -9/Exiles Mutant | -8/Mines Hauler-Mutant | -8/Materials Hauler-Sprinter | -7/Factory Hacker-Sprinter | -6/Factory Hacker-Sprinter | -5/Factory Hacker-Sprinter | -4/Factory Wizard-Sprinter | -3/Research Wizard-Sprinter | -2/Research Wizard-Sprinter | -2/DSF Wizard-Sprinter | -1/Access Resources | -11 -10 -10 -9 -9 -9 -8 -8 -7 -6 -5 -4 -3 -2 -2 -1 ----------- Run | Yrd Mat Min Mat Min Exi Min Mat Fac Fac Fac Fac Res Res DSF Acc Matter Collected 2601 | 296 626 122 623 20 . 10 277 127 100 . 97 64 . . 239 Remotely 307 | . 307 . . . . . . . . . . . . . . Salvage Created 4017 | 89 796 149 1110 . . . 1222 51 152 . 97 64 . . 287 Parts 245 | 1 52 10 63 . . . 73 6 17 . 10 7 . . 6 Haulers Intercepted 8 | . 2 . 3 . . . 3 . . . . . . . . Recyclers Shooed 2 | . 1 . . . . . 1 . . . . . . . . Parts Field Recycled . | . . . . . . . . . . . . . . . . Retrieved Matter . | . . . . . . . . . . . . . . . . Parts Self-Destructed . | . . . . . . . . . . . . . . . . Prevented . | . . . . . . . . . . . . . . . . Kills | -11 -10 -10 -9 -9 -9 -8 -8 -7 -6 -5 -4 -3 -2 -2 -1 ------- Run | Yrd Mat Min Mat Min Exi Min Mat Fac Fac Fac Fac Res Res DSF Acc Combat Hostiles Destroyed 82 | . 14 4 34 . . . 26 . . . . . . . 4 Guns 31 | . 12 1 18 . . . . . . . . . . . . Cannons 30 | . 2 3 12 . . . 13 . . . . . . . . AOE 16 | . . . . . . . 12 . . . . . . . 4 Classes Destroyed 14 | 1 5 . 4 . . . 1 . . . 2 . . . 1 Worker 4 | . . . 1 . . . 3 . . . . . . . . Builder 1 | . . . . . . . . . . . . . . . 1 Tunneler 1 | . . . . . . . . . . . 1 . . . . Hauler 8 | . 2 . 3 . . . 3 . . . . . . . . Recycler 5 | 1 2 . . . . . 1 . . . . . . . 1 Mechanic 1 | . . . . . . . . . . . 1 . . . . Operator 15 | . 2 . 2 . . . 1 2 3 . 1 2 . . 2 Watcher 10 | . 3 . 4 . . . 1 . 2 . . . . . . Swarmer 25 | . 2 . 10 . . . 9 . . . . . . . 4 Grunt 39 | . 12 4 12 . . . 11 . . . . . . . . Brawler 2 | . . . 1 . . . 1 . . . . . . . . Duelist 2 | . . . 1 . . . 1 . . . . . . . . Sentry 12 | . . . 10 . . . 2 . . . . . . . . Specialist 2 | . . . . . . . 2 . . . . . . . . Best Kill Streak 8 | 1 3 2 5 . . . 8 1 1 . 2 1 . . 4 Combat Bots Only 6 | . 3 2 4 . . . 6 . . . . . . . 4 Max Kills in Single Turn 4 | 1 1 1 1 . . . 4 1 1 . 1 1 . . 2 Gunslinging . | . . . . . . . . . . . . . . . . Exploded 4 | . . . . . . . 4 . . . . . . . 2 Melee . | . . . . . . . . . . . . . . . . Uniques/NPCs Destroyed . | . . . . . . . . . . . . . . . . Combat | -11 -10 -10 -9 -9 -9 -8 -8 -7 -6 -5 -4 -3 -2 -2 -1 -------- Run | Yrd Mat Min Mat Min Exi Min Mat Fac Fac Fac Fac Res Res DSF Acc Hostile Shots Fired 476 | . 71 13 159 . . 14 141 . 35 . 2 6 . 4 31 Missed 160 | . 20 7 34 . . 6 48 . 17 . 2 3 . 2 21 Hits 316 | . 51 6 125 . . 8 93 . 18 . . 3 . 2 10 Melee 4 | . . . 4 . . . . . . . . . . . . Projectile 312 | . 51 6 121 . . 8 93 . 18 . . 3 . 2 10 AOE 3 | . . . . . . . . . . . . . . 3 . Critical Strikes 13 | . . . 6 . . . 7 . . . . . . . . Damage Taken 4835 | . 567 84 1497 . . 69 1896 . 134 . . 72 . 224 292 Core 793 | . 40 . 252 . . 18 405 . 34 . . . . 44 . Absorbed by Shields . | . . . . . . . . . . . . . . . . Redirected to Shielding 71 | . . . . . . . . . . . . . . 30 41 Regen/Repaired (Parts) 185 | . . . 108 . . . 60 17 . . . . . . . Core Remaining (%) 84 | 100 . 84 . . . 32 26 100 96 100 100 100 . 96 100 Volleys Fired 249 | 4 81 8 113 . . . 33 . . . . 1 . . 9 Largest 2 | 2 2 2 2 . . . 2 . . . . 1 . . 1 Hottest 169 | 40 50 50 168 . . . 169 . . . . 43 . . 43 Shots Fired 478 | 8 163 17 217 . . . 63 . . . . 1 . . 9 Gun 256 | 8 135 9 104 . . . . . . . . . . . . Cannon 104 | . 28 8 20 . . . 48 . . . . . . . . Launcher 22 | . . . . . . . 12 . . . . 1 . . 9 Special 96 | . . . 93 . . . 3 . . . . . . . . Kinetic 300 | 8 163 17 112 . . . . . . . . . . . . Thermal 108 | . . . 105 . . . 3 . . . . . . . . Explosive 22 | . . . . . . . 12 . . . . 1 . . 9 Electromagnetic 48 | . . . . . . . 48 . . . . . . . . Robot Hit Streak 21 | 3 17 8 21 . . . 9 . . . . . . . 10 Robot Miss Streak 4 | 1 4 1 3 . . . 3 . . . . . . . 1 Penetration Max . | . . . . . . . . . . . . . . . . Secondary Targets 2 | . 2 . . . . . . . . . . . . . . Max Gunslinging Chain 1 | . 1 . . . . . . . . . . . . . . Shots Hit Robots 353 | 6 107 12 156 . . . 48 5 5 . 5 2 . . 7 Core Hits 190 | 2 40 7 61 . . . 58 1 5 . 2 1 . . 13 Critical Kills . | . . . . . . . . . . . . . . . . Critical Parts Destroyed 1 | . 1 . . . . . . . . . . . . . . Critical Strikes 17 | . 1 . 15 . . . 1 . . . . . . . . Burn 15 | . . . 15 . . . . . . . . . . . . Destroy 1 | . 1 . . . . . . . . . . . . . . Corrupt 1 | . . . . . . . 1 . . . . . . . . Melee Attacks 132 | . . . . . . . 26 28 24 5 12 10 . 3 24 Impact . | . . . . . . . . . . . . . . . . Slashing 132 | . . . . . . . 26 28 24 5 12 10 . 3 24 Piercing . | . . . . . . . . . . . . . . . . Sneak Attacks 17 | . . . . . . . 2 3 4 . 3 2 . . 3 Combat Hostiles . | . . . . . . . . . . . . . . . . Follow-up Attacks . | . . . . . . . . . . . . . . . . Damage Inflicted 9029 | 81 1278 196 2239 7 . . 2896 352 371 . 396 227 . . 986 Guns 2315 | 81 1011 69 1154 . . . . . . . . . . . . Cannons 1549 | . 264 127 275 . . . 883 . . . . . . . . Explosions 2069 | . . . . . . . 1545 . . . . . . . 524 Melee 2223 | . . . . . . . 415 352 371 . 396 227 . . 462 Ramming 40 | . 3 . 18 7 . . 12 . . . . . . . . Kinetic 2797 | 81 1275 196 1245 . . . . . . . . . . . . Thermal 1017 | . . . 976 . . . 41 . . . . . . . . Explosive 1729 | . . . . . . . 1205 . . . . . . . 524 Electromagnetic 1223 | . . . . . . . 1223 . . . . . . . . Impact . | . . . . . . . . . . . . . . . . Slashing 2223 | . . . . . . . 415 352 371 . 396 227 . . 462 Piercing . | . . . . . . . . . . . . . . . . Highest Corruption 4 | . 3 3 . . . . 2 . 1 2 . . . 4 . Average Corruption 2 | . 2 3 . . . . 2 . 1 2 . . . 4 . Corruption Purged . | . . . . . . . . . . . . . . . . Corruption Blocked . | . . . . . . . . . . . . . . . . Effects 51 | . 19 22 . . . . 8 . 2 . . . . . . Message Errors 13 | . 6 6 . . . . 1 . . . . . . . . Matter Fused 11 | . 5 3 . . . . 3 . . . . . . . . Heat Flow Errors 9 | . 4 4 . . . . 1 . . . . . . . . Energy Discharges 7 | . 1 3 . . . . 2 . 1 . . . . . . Data Loss (minor) 6 | . 1 3 . . . . 1 . 1 . . . . . . Data Loss (major) 1 | . 1 . . . . . . . . . . . . . . Misfires 2 | . 1 1 . . . . . . . . . . . . . Alerts 2 | . . 2 . . . . . . . . . . . . . Overload Shots . | . . . . . . . . . . . . . . . . Overflow Damage 588 | . 1 . 1 . . . 105 151 . . 86 70 . . 174 Projectiles 6 | . 1 . 1 . . . 4 . . . . . . . . Explosions 33 | . . . . . . . 6 . . . . . . . 27 Melee 549 | . . . . . . . 95 151 . . 86 70 . . 147 Knockbacks 15 | . 7 3 3 1 . . 1 . . . . . . . . Impact 2 | . . . . 1 . . 1 . . . . . . . . Kinetic 12 | . 7 2 3 . . . . . . . . . . . . Secondary 1 | . . 1 . . . . . . . . . . . . . Self-Inflicted Damage 69 | . . . . . . . 69 . . . . . . . . Shots 4 | . . . . . . . 4 . . . . . . . . Rammed . | . . . . . . . . . . . . . . . . Targets Rammed 5 | . 1 . 2 1 . . 1 . . . . . . . . Kicked 5 | . 1 . 2 1 . . 1 . . . . . . . . Crushed . | . . . . . . . . . . . . . . . . Highest Temperature 313 | . 223 252 192 . . . 313 . 164 . 160 204 5 237 227 Average Temperature 59 | . 48 91 43 . . . 115 . 17 . 45 25 5 237 85 Received Heat Transfer 1332 | . 306 48 456 . . . 486 . 27 . . 9 . . . Effects 2 | . 1 . . . . . 1 . . . . . . . . Energy Bleed 1 | . . . . . . . 1 . . . . . . . . Interference 1 | . 1 . . . . . . . . . . . . . . Siege Activations . | . . . . . . . . . . . . . . . . Martial Activations . | . . . . . . . . . . . . . . . . Shielding Activations . | . . . . . . . . . . . . . . . . Robots Disrupted 1 | . . . . . . . 1 . . . . . . . . Combat Hostiles 1 | . . . . . . . 1 . . . . . . . . Robots Corrupted 1 | . . . . . . . 1 . . . . . . . . Combat Hostiles 1 | . . . . . . . 1 . . . . . . . . Parts Fried 5 | . . . . . . . 5 . . . . . . . . Impact Corruptions . | . . . . . . . . . . . . . . . . Robots Melted 6 | . . . 6 . . . . . . . . . . . . Combat Hostiles 4 | . . . 4 . . . . . . . . . . . . Parts Melted 18 | . . . 18 . . . . . . . . . . . . Heat Transferred 7853 | . . . 7613 . . . 240 . . . . . . . . Parts Sabotaged . | . . . . . . . . . . . . . . . . Parts Stolen . | . . . . . . . . . . . . . . . . Parts Stripped . | . . . . . . . . . . . . . . . . Power Chain Reactions . | . . . . . . . . . . . . . . . . Alert | -11 -10 -10 -9 -9 -9 -8 -8 -7 -6 -5 -4 -3 -2 -2 -1 ------- Run | Yrd Mat Min Mat Min Exi Min Mat Fac Fac Fac Fac Res Res DSF Acc Maximum Alert Level 2 | . . . 2 . . . 2 1 . . . . . . . Low Security (%) 77 | 100 100 100 41 100 . 100 47 . 100 100 100 100 100 100 100 Level 1 12 | . . . 25 . . . 21 100 . . . . . . . Level 2 10 | . . . 33 . . . 31 . . . . . . . . Level 3 . | . . . . . . . . . . . . . . . . Level 4 . | . . . . . . . . . . . . . . . . Level 5 . | . . . . . . . . . . . . . . . . High Security . | . . . . . . . . . . . . . . . . Max Security . | . . . . . . . . . . . . . . . . Peak Influence 616 | 5 185 50 463 177 . . 616 316 126 35 63 49 14 19 148 Initial 266 | . . . . 177 . . . 266 126 35 . 24 14 10 . Average 121 | . 64 4 265 40 . . 277 255 26 8 17 20 14 11 82 Influence Increases 3765 | 5 506 109 1132 . . . 1055 214 161 10 114 97 . 9 353 Destroy 0b10 Robot/C 1640 | . 280 80 680 . . . 520 . . . . . . . 80 Destroy 0b10 Robot/NC 225 | 5 45 . 50 . . . 45 10 25 . 15 10 . . 20 Destroy Leader 436 | . 80 20 214 . . . 108 . 4 . . . . . 10 Successful Hack 369 | . 9 9 32 . . . 14 108 70 . 74 26 . . 27 Disable Machine 165 | . . . . . . . 75 15 30 . 15 15 . . 15 Destroy Structure 390 | . 2 . 6 . . . 83 21 17 10 10 46 . 9 186 Partial Spotted 90 | . 15 . 15 . . . 15 15 15 . . . . . 15 Lose Combat Pursuer 450 | . 75 . 135 . . . 195 45 . . . . . . . Influence Decreases 3665 | 5 506 109 677 455 . . 470 541 347 80 68 119 12 23 253 Entered New Map 808 | . . . . 278 . . . 319 132 37 2 24 12 4 . Time Decay 2643 | 5 506 109 632 177 . . 350 222 215 43 66 95 . . 223 Lost Part 214 | . . . 45 . . . 120 . . . . . . 19 30 Squads Dispatched 31 | . 4 . 5 . . . 5 4 4 . 1 1 . 1 6 Investigation 12 | . 2 . 2 . . . 1 2 3 . 1 . . . 1 Extermination 5 | . . . . . . . . 1 1 . . . . . 3 Reinforcement 14 | . 2 . 3 . . . 4 1 . . . 1 . 1 2 Assault . | . . . . . . . . . . . . . . . . Garrison . | . . . . . . . . . . . . . . . . Intercept . | . . . . . . . . . . . . . . . . Searches Triggered . | . . . . . . . . . . . . . . . . Construction Impeded 2 | . . . . . . . 1 . . . . . . . 1 Haulers Reinforced . | . . . . . . . . . . . . . . . . Active Scanning Responses . | . . . . . . . . . . . . . . . . Cargo Convoy Interrupts . | . . . . . . . . . . . . . . . . Stealth | -11 -10 -10 -9 -9 -9 -8 -8 -7 -6 -5 -4 -3 -2 -2 -1 --------- Run | Yrd Mat Min Mat Min Exi Min Mat Fac Fac Fac Fac Res Res DSF Acc Distress Signals 9 | . 1 . 4 . . . 3 . . . . . . . 1 Communications Jammed . | . . . . . . . . . . . . . . . . Distress Signals . | . . . . . . . . . . . . . . . . Times Spotted 166 | . 27 4 52 . . 3 39 5 10 . 2 4 . 5 15 Peak Tracking Total 7 | . 5 2 7 . . 3 7 3 3 . 1 2 . 7 7 Tactical Retreats 30 | . 3 . 6 . . . 7 1 5 . 1 2 . . 5 Traps | -11 -10 -10 -9 -9 -9 -8 -8 -7 -6 -5 -4 -3 -2 -2 -1 ------- Run | Yrd Mat Min Mat Min Exi Min Mat Fac Fac Fac Fac Res Res DSF Acc Traps Triggered 12 | . 4 . 2 . . . 1 1 2 1 . . . . 1 Indirectly . | . . . . . . . . . . . . . . . . Trap Hack Attempts . | . . . . . . . . . . . . . . . . Triggered . | . . . . . . . . . . . . . . . . Disarmed . | . . . . . . . . . . . . . . . . Reprogrammed . | . . . . . . . . . . . . . . . . Reused . | . . . . . . . . . . . . . . . . Traps Extracted . | . . . . . . . . . . . . . . . . Installed . | . . . . . . . . . . . . . . . . Triggered . | . . . . . . . . . . . . . . . . Machines | -11 -10 -10 -9 -9 -9 -8 -8 -7 -6 -5 -4 -3 -2 -2 -1 ---------- Run | Yrd Mat Min Mat Min Exi Min Mat Fac Fac Fac Fac Res Res DSF Acc Machines Disabled 11 | . . . . . . . 5 1 2 . 1 1 . . 1 Max in Single Turn 2 | . . . . . . . 2 1 1 . 1 1 . . 1 Garrison Access 4 | . . . . . . . . . 1 1 1 1 . . . Machines Repaired . | . . . . . . . . . . . . . . . . Machines Dismantled . | . . . . . . . . . . . . . . . . Machines Sabotaged . | . . . . . . . . . . . . . . . . Overloaded Fab Kills . | . . . . . . . . . . . . . . . . Hacking | -11 -10 -10 -9 -9 -9 -8 -8 -7 -6 -5 -4 -3 -2 -2 -1 --------- Run | Yrd Mat Min Mat Min Exi Min Mat Fac Fac Fac Fac Res Res DSF Acc Machines Accessed 80 | . 7 1 14 1 2 . 6 12 13 5 5 4 1 . 9 Terminals 49 | . 4 1 8 . . . 4 8 11 2 3 2 1 . 5 Fabricators 3 | . . . . . . . . . 1 . . 1 . . 1 Repair Stations 6 | . 1 . 2 . . . 1 1 . . . . . . 1 Recycling Units 7 | . 2 . 2 . . . . 1 . 2 . . . . . Scanalyzers 6 | . . . 2 . . . 1 1 . . 1 . . . 1 Garrison Access 6 | . . . . . . . . 1 1 1 1 1 . . 1 Total Hacks 252 | . 20 2 69 1 5 . 19 25 42 22 16 9 1 . 21 Successful 140 | . 8 2 46 1 5 . 9 12 18 17 9 4 1 . 8 Failed 112 | . 12 . 23 . . . 10 13 24 5 7 5 . . 13 Catastrophic 18 | . 1 . 1 . . . 1 5 4 . 2 1 . . 3 Database Lockouts . | . . . . . . . . . . . . . . . . Manual 134 | . 13 1 18 . 1 . 8 16 35 13 12 6 . . 11 Terminals 154 | . 13 2 32 . . . 11 17 36 12 12 6 1 . 12 Fabricators 8 | . . . . . . . . . 4 . . 2 . . 2 Repair Stations 26 | . 3 . 11 . . . 6 3 . . . . . . 3 Recycling Units 13 | . 4 . 2 . . . . 1 . 6 . . . . . Scanalyzers 33 | . . . 24 . . . 2 3 . . 2 . . . 2 Garrison Access 12 | . . . . . . . . 1 2 4 2 1 . . 2 Terminal Hacks 58 | . 2 2 13 1 5 . 3 1 9 9 6 3 1 . 3 Record 8 | . . . 3 . 4 . . . . 1 . . . . . Part Schematic 10 | . 1 . . . . . . . 6 1 2 . . . . Prototype ID Bank 2 | . 1 . . . . . . . . . 1 . . . . Open Door 2 | . . . . 1 . . . . . . . . . . 1 Open DSF 1 | . . . . . . . . . . . . . 1 . . Level Access Points 6 | . . . . . . . 1 . 1 1 1 1 . . 1 Branch Access Points 1 | . . . 1 . . . . . . . . . . . . Terminal Index 3 | . . . . . . . . . . 1 . 1 . . 1 Fabricator Index 1 | . . . . . . . . . . . 1 . . . . Alert Level 2 | . . . 1 . . . 1 . . . . . . . . Unreport Threat 1 | . . . . . . . . . 1 . . . . . . Locate Traps 9 | . . . 4 . . . . . 1 2 1 1 . . . Maintenance Status 4 | . . 1 2 . . . . . . 1 . . . . . Patrol Status 2 | . . . . . . . . 1 . 1 . . . . . Registered Prototypes 1 | . . . 1 . . . . . . . . . . . . Zone Layout 4 | . . 1 1 . . . 1 . . 1 . . . . . Proto ID Catalog 1 | . . . . . 1 . . . . . . . . . . Fabricator Hacks 6 | . . . . . . . . . 4 . . . . . 2 Load Schematic 3 | . . . . . . . . . 2 . . . . . 1 Build 3 | . . . . . . . . . 2 . . . . . 1 Repair Station Hacks 14 | . 1 . 7 . . . 3 2 . . . . . . 1 Scan Component 9 | . 1 . 4 . . . 2 1 . . . . . . 1 Repair 5 | . . . 3 . . . 1 1 . . . . . . . Recycling Unit Hacks 9 | . 3 . 1 . . . . 1 . 4 . . . . . Process 1 | . . . . . . . . . . 1 . . . . . Report Inventory 6 | . 2 . 1 . . . . 1 . 2 . . . . . Retrieve Matter 1 | . . . . . . . . . . 1 . . . . . Retrieve Components 1 | . 1 . . . . . . . . . . . . . . Scanalyzer 31 | . . . 22 . . . 2 3 . . 2 . . . 2 Insert Component 14 | . . . 10 . . . 1 1 . . 1 . . . 1 Analyze 17 | . . . 12 . . . 1 2 . . 1 . . . 1 Garrison Access Hacks 4 | . . . . . . . . . 1 1 1 1 . . . Seal Access 4 | . . . . . . . . . 1 1 1 1 . . . Unauthorized Hacks 18 | . 2 . 3 . . . 1 5 4 3 . . . . . Terminals 16 | . 2 . 3 . . . 1 5 4 1 . . . . . Botnet 15 | . 2 . 3 . . . 1 4 4 1 . . . . . Operators 1 | . . . . . . . . 1 . . . . . . . Fabricators . | . . . . . . . . . . . . . . . . Repair Stations . | . . . . . . . . . . . . . . . . Recycling Units 2 | . . . . . . . . . . 2 . . . . . Recyclers 2 | . . . . . . . . . . 2 . . . . . Scanalyzers . | . . . . . . . . . . . . . . . . Garrison Access . | . . . . . . . . . . . . . . . . Data Cores Recovered 2 | . . . . . . . . . 1 . . 1 . . . Used . | . . . . . . . . . . . . . . . . Hacking Detections 66 | . 6 1 11 . . . 5 12 12 3 4 3 . . 9 Full Trace Events 10 | . 2 . 1 . . . 1 2 2 . 1 . . . 1 Feedback Events 1 | . . . . . . . . . 1 . . . . . . Corruption 1 | . . . . . . . . . 1 . . . . . . Feedback Blocked . | . . . . . . . . . . . . . . . . Robot Schematics Acquired . | . . . . . . . . . . . . . . . . Robots Built . | . . . . . . . . . . . . . . . . Authchips . | . . . . . . . . . . . . . . . . Time . | . . . . . . . . . . . . . . . . Total Robot Build Rating . | . . . . . . . . . . . . . . . . Part Schematics Acquired 23 | . 1 . 10 . . . 1 1 6 . 3 . . . 1 Parts Built 3 | . . . . . . . . . 2 . . . . . 1 Authchips 2 | . . . . . . . . . 2 . . . . . . Time 129 | . . . . . . . . . 85 . . . . . 44 Total Part Build Rating 9 | . . . . . . . . . 5 . . . . . 4 Parts Repaired 5 | . . . 3 . . . 1 1 . . . . . . . Time 243 | . . . 170 . . . 61 12 . . . . . . . Parts Recycled . | . . . . . . . . . . . . . . . . Recycled Matter 13 | . . . . . . . . . . 13 . . . . . Retrieved Matter 13 | . . . . . . . . . . 13 . . . . . Retrieved Components 7 | . 7 . . . . . . . . . . . . . . Parts Scanalyzed 14 | . . . 10 . . . 1 1 . . 1 . . . 1 Part Schematics Acquired 14 | . . . 10 . . . 1 1 . . 1 . . . 1 Parts Damaged 1 | . . . 1 . . . . . . . . . . . . Bothacking | -11 -10 -10 -9 -9 -9 -8 -8 -7 -6 -5 -4 -3 -2 -2 -1 ------------ Run | Yrd Mat Min Mat Min Exi Min Mat Fac Fac Fac Fac Res Res DSF Acc Used RIF Installer . | . . . . . . . . . . . . . . . . Robots Hacked . | . . . . . . . . . . . . . . . . Non-combat . | . . . . . . . . . . . . . . . . Combat . | . . . . . . . . . . . . . . . . Robot Hacks Applied . | . . . . . . . . . . . . . . . . Relay Couplers Released . | . . . . . . . . . . . . . . . . Fabnet Peak Effective % . | . . . . . . . . . . . . . . . . Robots Rewired . | . . . . . . . . . . . . . . . . Allies Hacked . | . . . . . . . . . . . . . . . . Hacks Repelled . | . . . . . . . . . . . . . . . . Allies | -11 -10 -10 -9 -9 -9 -8 -8 -7 -6 -5 -4 -3 -2 -2 -1 -------- Run | Yrd Mat Min Mat Min Exi Min Mat Fac Fac Fac Fac Res Res DSF Acc Total Allies 13 | . . . . 1 . . . . . . 12 . . . . Largest Group 8 | . . . . 1 . . . . . . 8 . . . . Highest-Rated Group 263 | . . . . 31 . . . . . . 263 . . . . Highest-Rated Ally 46 | . . . . 31 . . . . . . 46 . . . . Total Orders . | . . . . . . . . . . . . . . . . Ally Attacks . | . . . . . . . . . . . . . . . . Total Damage . | . . . . . . . . . . . . . . . . Kills . | . . . . . . . . . . . . . . . . Allies Corrupted . | . . . . . . . . . . . . . . . . Allies Melted . | . . . . . . . . . . . . . . . . Intel | -11 -10 -10 -9 -9 -9 -8 -8 -7 -6 -5 -4 -3 -2 -2 -1 ------- Run | Yrd Mat Min Mat Min Exi Min Mat Fac Fac Fac Fac Res Res DSF Acc Active Infowar (turns) 1867 | . . . . . . . . 1 675 196 259 217 7 13 499 Structural 1578 | . . . . . . . . . 387 196 259 217 7 13 499 ECM 1047 | . . . . . . . . 1 479 . 97 204 5 . 261 Robot Analysis Total . | . . . . . . . . . . . . . . . . Derelict Logs Recovered 3 | . . 1 . 2 . . . . . . . . . . . Drone Launches . | . . . . . . . . . . . . . . . . Drone Recoveries . | . . . . . . . . . . . . . . . . Exploration | -11 -10 -10 -9 -9 -9 -8 -8 -7 -6 -5 -4 -3 -2 -2 -1 ------------- Run | Yrd Mat Min Mat Min Exi Min Mat Fac Fac Fac Fac Res Res DSF Acc Turns Passed 10405 | 84 1782 1321 2304 814 259 265 998 464 923 196 259 217 7 13 499 Spaces Moved 11140 | 42 887 672 1266 655 213 219 813 1174 1930 547 814 505 19 50 1334 Core 3 | 3 . . . . . . . . . . . . . . . Treads 21 | 21 . . . . . . . . . . . . . . . Legs 4269 | 18 887 672 1266 655 213 219 339 . . . . . . . . Wheels . | . . . . . . . . . . . . . . . . Hover . | . . . . . . . . . . . . . . . . Flight 6847 | . . . . . . . 474 1174 1930 547 814 505 19 50 1334 Fastest Speed 5 | 50 120 190 120 120 120 120 26 26 5 23 20 5 20 5 5 Average Speed 67 | 135 162 190 120 120 120 120 65 26 22 23 20 19 20 11 16 Slowest Speed 190 | 160 190 190 190 120 120 120 120 26 24 23 23 20 20 20 20 Overloaded Moves 192 | . . . . . . . . . 37 . . 25 . 30 100 Propulsion Burnouts . | . . . . . . . . . . . . . . . . Robots Hopped 27 | . . . . . . . 2 2 8 3 3 . . . 9 Potential Cave-ins 9 | . . . . . . . . . . . . . . . 9 Cave-ins Triggered . | . . . . . . . . . . . . . . . . Exploration Rate (%) 48 | 4 96 95 96 99 60 49 48 35 38 15 21 9 1 78 31 Regions Visited 15 Branch Regions 4 Pre-discovered Areas 2 | . . 1 . . 1 . . . . . . . . . . Known Exits Taken 7 | . . . 1 . . . 1 . 1 1 1 1 1 . . Unknown Exits Taken 7 | 1 1 1 . 1 1 1 . 1 . . . . . . . Scrap Searched 5 | . . 3 . 1 . 1 . . . . . . . . . Spaces Dug 179 | . . . . . . . 19 21 17 5 5 26 . 3 83 Terrain Destroyed 286 | . . . . . . . 87 21 17 5 5 26 . 3 122 Melee 84 | . . . . . . . 11 21 17 5 5 7 . 3 15 Projectile . | . . . . . . . . . . . . . . . . AOE 202 | . . . . . . . 76 . . . . 19 . . 107 Terrain Rammed . | . . . . . . . . . . . . . . . . Walls Destroyed . | . . . . . . . . . . . . . . . . Machines Disabled . | . . . . . . . . . . . . . . . . Actions | -11 -10 -10 -9 -9 -9 -8 -8 -7 -6 -5 -4 -3 -2 -2 -1 --------- Run | Yrd Mat Min Mat Min Exi Min Mat Fac Fac Fac Fac Res Res DSF Acc Total 13341 | 60 1082 703 1806 684 218 221 1175 1289 2375 606 887 607 21 52 1555 Wait 1442 | 1 59 14 347 20 . 3 237 52 351 48 55 89 2 . 164 Move 11071 | 41 886 671 1265 654 212 218 808 1169 1913 540 807 504 18 49 1316 Hop 26 | . . . . . . . 2 2 8 3 3 . . . 8 Pick Up 99 | 4 16 3 13 2 1 . 28 8 14 3 . 1 . . 6 Fast Attach 52 | 6 6 . 10 2 1 . 3 2 4 2 4 . . . 12 Attach 51 | 2 1 . 7 . . . 15 3 11 2 2 2 1 . 5 Detach 17 | 2 1 . 5 2 . . 1 1 2 . 2 . . . 1 Swap 52 | . 13 2 17 . . . 9 1 8 . . . . . 2 Drop 112 | . 18 5 27 3 4 . 12 5 25 3 2 . . . 8 Fire 249 | 4 81 8 113 . . . 33 . . . . 1 . . 9 Melee 132 | . . . . . . . 26 28 24 5 12 10 . 3 24 Ram . | . . . . . . . . . . . . . . . . Kick 5 | . 1 . 2 1 . . 1 . . . . . . . . Crush . | . . . . . . . . . . . . . . . . Escape Stasis 33 | . . . . . . . . 18 15 . . . . . . Rewire . | . . . . . . . . . . . . . . . . Trap . | . . . . . . . . . . . . . . . . Miscellaneous . | . . . . . . . . . . . . . . . . Route ------- -11/Scrapyard -10/Materials (discovered 5 exits: *Mat x3 / *Min / [*Sub]) -10/Mines (discovered 2 exits: *Mat / [*Sub]) -9/Materials (discovered 5 exits: *Mat x3 / *Min x2) -9/Mines (discovered 3 exits: *Mat x2 / *Exi) -9/Exiles -8/Mines -8/Materials (discovered 3 exits: *Fac x3) -7/Factory (discovered 2 exits: *Fac / Low) -6/Factory (discovered 5 exits: *Fac x4 / [*Low]) -5/Factory (discovered 5 exits: *Fac x4 / [*Upp]) -4/Factory (discovered 4 exits: *Res x4) -3/Research (discovered 3 exits: *Res x3) -2/Research -2/DSF -1/Access To Epsilon Eridani History --------- Turn | Location | Event 23 | -11/Scrapyard | Discovered new exit (range 16) 85 | -11/Scrapyard | Entered Materials 330 | -10/Materials | Build established: Mutant 400 | -10/Materials | Discovered new exit (range 12) 533 | -10/Materials | Discovered new exit (range 10) 604 | -10/Materials | Discovered new exit (range 13) 1605 | -10/Materials | Discovered new exit (range 9) 1781 | -10/Materials | Discovered new exit (range 4) 1867 | -10/Materials | Entered Mines 2293 | -10/Mines | Learned location of Mines (-8) 2391 | -10/Mines | Discovered new exit (range 8) 2519 | -10/Mines | A weapon hastily lodged in a ceiling crevice suddenly fell to the ground 2552 | -10/Mines | Discovered new exit (range 12) 2624 | -10/Mines | YI-UF0 nonchalantly dropped a Grenade Launcher on the ground 3188 | -10/Mines | Entered Materials 3188 | -9/Materials | Evolved 2 slots: Propulsion x2 3467 | -9/Materials | Discovered new exit (range 8) 3495 | -9/Materials | Build established: Scavenger-Mutant 3799 | -9/Materials | Repaired Broken Plasma Flamer 3943 | -9/Materials | Discovered new exit (range 15) 4118 | -9/Materials | Identified exit to Mines 4560 | -9/Materials | Repaired Plasma Flamer 4592 | -9/Materials | Core integrity fell below 50% 4671 | -9/Materials | Discovered new exit (range 8) 4976 | -9/Materials | Build established: Mutant 5085 | -9/Materials | Repaired Plasma Flamer 5331 | -9/Materials | Discovered new exit (range 7) 5492 | -9/Materials | Entered Mines 5492 | -9/Mines | Discovered new exit (range 10) 5503 | -9/Mines | Received a Mining Laser from a helpful Derelict 5552 | -9/Mines | Found a damaged Exp. Sensor Array with a note attached 5603 | -9/Mines | Discovered new exit (range 9) 5666 | -9/Mines | Met a Derelict who couldn't figure out how to use a Trap Extractor 5750 | -9/Mines | Learned Materials terminal intel 5967 | -9/Mines | Received a Rocket Launcher from a helpful Derelict 6300 | -9/Mines | Deemed a non-threat by the Exiles lab entrance 6301 | -9/Mines | Discovered new exit (range 5) 6306 | -9/Mines | Entered Exiles 6338 | -9/Exiles | Met 8R-AWN 6358 | -9/Exiles | Met EX-HEX 6392 | -9/Exiles | Met EX-BIN 6407 | -9/Exiles | Aligned with FarCom system 6408 | -9/Exiles | Given EX-Vault access code 6438 | -9/Exiles | Opened EX-Vault 6453 | -9/Exiles | Found Lightpack 2.0 6478 | -9/Exiles | Warned to stay clear of 0b10 Research branches 6510 | -9/Exiles | Met EX-DEC 6519 | -9/Exiles | Learned location of Zion (-7) 6555 | -9/Exiles | Discovered new exit (range 10) 6565 | -9/Exiles | Left Exiles lab with Lightpack 2.0 6565 | -9/Exiles | Entered Mines 6816 | -8/Mines | Discovered new exit (range 13) 6830 | -8/Mines | Entered Materials 6830 | -8/Materials | Evolved 2 slots: Utility x2 6831 | -8/Materials | Loaded intel: 12 terminal locations 7108 | -8/Materials | Repaired Broken Imp. EM Pulse Cannon 7129 | -8/Materials | Build established: Hauler-Mutant 7581 | -8/Materials | Core integrity fell below 50% 7620 | -8/Materials | Lost 12 parts (2p5n1u4w) 7676 | -8/Materials | Discovered new exit (range 14) 7688 | -8/Materials | Identified exit to Factory 7828 | -8/Materials | Entered Factory 7828 | -7/Factory | Evolved 2 slots: Utility x2 7829 | -7/Factory | Identified exit to Lower Caves 7909 | -7/Factory | Build established: Hauler-Sprinter 7973 | -7/Factory | Repaired Katana 8155 | -7/Factory | Discovered new exit (range 9) 8292 | -7/Factory | Entered another Factory area 8292 | -6/Factory | Evolved 2 slots: Propulsion x1, Utility x1 8367 | -6/Factory | Fabricated Hacking Suite (x1) 8405 | -6/Factory | Discovered new exit (range 15) 8410 | -6/Factory | Spotted B-75 Beast 8420 | -6/Factory | Discovered new exit (range 12) 8701 | -6/Factory | Fabricated Imp. Flight Unit (x1) 8760 | -6/Factory | Build established: Hacker-Sprinter 9175 | -6/Factory | Identified exit to Factory 9215 | -6/Factory | Entered another Factory area 9215 | -5/Factory | Evolved 2 slots: Utility x2 9259 | -5/Factory | Identified exit to Factory 9388 | -5/Factory | Discovered new exit (range 6) 9411 | -5/Factory | Entered another Factory area 9411 | -4/Factory | Evolved 2 slots: Power x1, Propulsion x1 9533 | -4/Factory | Identified exit to Research 9634 | -4/Factory | Spotted B-86 Titan 9670 | -4/Factory | Entered Research 9670 | -3/Research | Evolved 2 slots: Utility x2 9727 | -3/Research | Spotted B-86 Titan 9742 | -3/Research | Identified exit to Research 9887 | -3/Research | Entered another Research area 9887 | -2/Research | Evolved 2 slots: Propulsion x1, Utility x1 9894 | -2/Research | Identified exit to DSF 9894 | -2/Research | Entered DSF 9907 | -2/DSF | Discovered new exit (range 14) 9907 | -2/DSF | Entered Access 9907 | -1/Access | Evolved 2 slots: Propulsion x1, Utility x1 9938 | -1/Access | Lost 3 parts (1n2u) 10021 | -1/Access | Found Prototype Hackware 10024 | -1/Access | Identified Exp. Hacking Suite 10164 | -1/Access | Fabricated Cld. VTOL Module (x1) 10212 | -1/Access | Spotted B-99 Colossus 10300 | -1/Access | Lost 3 parts (1p1u1w) 10313 | -1/Access | Identified exit to Surface 10344 | -1/Access | Build established: Wizard-Sprinter 10406 | *** | Escaped! Last Messages --------------- Acquired Diametric Drive. Connecting with Terminal... ALERT: Potential suspicious activity detected, Programmers report to Access Zone 8I. Triggered Segregator Trap. Arcs of energy rise from the floor. Imp. Medium Armor Plating blown off. Reaction Control System blown off. Mic. Fission Core blown off. Acquired Imp. Medium Armor Plating. Acquired Reaction Control System. Acquired Mic. Fission Core. Drone sends a signal. W-44 Eye sends out distress signal. Connecting with Terminal... >>Open(Door) Sealed Barrier opened. The Access Shell folds into the floor. [Achievement: Epsilon Run] [Achievement: Achiever] Map ----- +----------------------------------------------------+ | # # ????????????????????????????????????????? | | # # ????????????????????????????????????????? | | # # ????????????????????????????????????????? | | # # ????????????????????????????????????????? | | # #"????????????????????????????????????????? | | # # ????????????????????????????????????????? | | # # ????????????????????????????????????????? | | + + ????????????????????????????????????????? | | ! # # ????????????????????????????????????????? | | ##### ########################### ???????????? | | ##### ###############################???????????? | | H ???????????? | | k k p ????????????? | | ########+############ p""##????????????????? | | #### ######## ""##????????????????? | | ??????? ?????????## ""##????????????????? | | ?????? ????????## T##????????????????? | | ?????? ????????## ""##????????????????? | | ????? ??????### ""###???????????????? | | ????? ??????### ""###???????????????? | | ???? ?????## ##???????????????? | | ??## ##???### ###???????????????? | | ??#############???### ###???????????????? | | ??#############????## ##????????????????? | | ???????????????????## ##????????????????? | | ???????????????????## @" ##????????????????? | | ???????????????????## "" ##????????????????? | | ???????????????????## ##????????????????? | | ???????????????????## ##????????????????? | | ?????##########????## ##????????????????? | | ?????################""""""""""##????????????????? | | ?????## ########"????????"##????????????????? | | ?????## !# ##?????????????????????????????? | | ###??## " ##?????????????????????????????? | | ###??## *# ##?????????????????????????????? | | ##??## # ##??BB????BB???????????????????? | | ###### # ##??BB????BB???????????????????? | | ########+#### ##?????????????????????????????? | | + ? ##?????????????????????????????? | | ######### #### ? ##?????????????????????????????? | | # # #### ? ##?????????????????????????????? | | ??????? # ##????####?????????????????????????????? | | ??????? # ##???? ?????????????????????????????? | | ??????? # ##?????????????????????????????????????? | | ??????? + ?????????????????????????????????????? | | ??????? # ??????????????????????????????????????? | | ??????? # ??????????????????????????????????????? | | ????????+ ?????????????????????????????????????? | | ????????####?????????????????????????????????????? | | ????????####?????????????????????????????????????? | +----------------------------------------------------+ Best States ------------- Heat Dissipation 52 Energy Generation 32 Energy Capacity 280 Matter Stores 300 Matter Capacity 300 Sight Range 16 Terrain Scan Density 10 ECM Strength 1 Power Amplification 20 Additional Mass Support 16 Base Temperature (-) 200 Armor Coverage 225 Propulsion Shielding 33 Utility Shielding 90 Evasion (%) 74 Melee Accuracy 6 Recoil Reduction 2 Offensive Hacking 48 Defensive Hacking 20 Authchip Count 6 Item Schematics ----------------- Lgt. Armor Plating | -10/Materials | Hacked Hacking Suite | -9/Materials | Scanalyzed ECM Suite | -9/Materials | Scanalyzed Structural Scanner | -9/Materials | Scanalyzed Lgt. Nuclear Core | -9/Materials | Scanalyzed Hrd. Light Armor Plating | -9/Materials | Scanalyzed VTOL Module | -9/Materials | Scanalyzed Grenade Launcher | -9/Materials | Scanalyzed Axe | -9/Materials | Scanalyzed Hvy. Assault Rifle | -9/Materials | Scanalyzed Aluminum Leg | -9/Materials | Scanalyzed Rocket Launcher | -8/Materials | Scanalyzed Imp. Light Armor Plating | -7/Factory | Scanalyzed Imp. Flight Unit | -6/Factory | Hacked Cld. VTOL Module | -6/Factory | Hacked Imp. Hacking Suite | -6/Factory | Hacked Imp. System Shield | -6/Factory | Hacked Lgt. Fission Core | -6/Factory | Hacked Katana | -6/Factory | Hacked System Shield | -4/Factory | Scanalyzed Mic. Fission Core | -4/Factory | Hacked Imp. Propulsion Shielding | -4/Factory | Hacked Adv. Cryofiber Web | -1/Access | Scanalyzed Robot Schematics ------------------ None Fabricated ------------ Hacking Suite | x1 | -6/Factory | Authchip Imp. Flight Unit | x1 | -6/Factory | Authchip Cld. VTOL Module | x1 | -1/Access Repaired ---------- Plasma Flamer | 42% | -9/Materials | Broken Plasma Flamer | 14% | -9/Materials Plasma Flamer | 28% | -9/Materials Imp. EM Pulse Cannon | 29% | -8/Materials | Broken Katana | 66% | -7/Factory Alien Tech Used ----------------- None Achievements -------------- Achiever Epsilon Run Supersonic The More The Merrier Watch This! Challenges ------------ None Game ------ Seed SegregatorBottomlessCorpse Manual? 0 Play Time 03:52:44 Cumulative 29.6 hours Start 2025.07.30 @ 23:47:55 End 2025.07.31 @ 05:23:12 Sessions 1 Manual Loads 0 Difficulty Rogue Special Mode None Game No. 31 Rogue 31 Adventurer 0 Explorer 0 Win Type 0 Total 1 Types 1/0/0/0/0/0/0/0/0/0 Lore% 9 Gallery% 22 Achievement% 26 Wizard Run 0 Options --------- Layout 0 ASCII 0 Keyboard 0 Movement Mouse Keybinds 0 Fullscreen 2 Font 24/Smallcaps Map View 76x50 Zoom Use 0% Tactical HUD 0 Map Filters NONE Filters NONE Steam 1 RUN: 27742ec0-1fa4-4ace-b1a5-9ce1461f605d